[Event "FIDE WCCC Open-10 2024"]
[Site "Montesilvano"]
[Date "2024.11.18"]
[Round "2.1"]
[White "Buklaho, Ignacy"]
[Black "Sameh Mohamed, Abdalrahman"]
[Result "0-1"]
[ECO "C54"]
[WhiteElo "1822"]
[BlackElo "2238"]
[PlyCount "82"]
[EventDate "2024.11.18"]
[EventType "swiss"]
[EventCountry "ITA"]
[TimeControl "5400+30"]

1. e4 {[%emt 0:00:06]} e5 {[%emt 0:00:04]} 2. Nf3 {[%emt 0:00:09]} Nc6 {[%emt 0:00:04]} 3. Bc4 {[%emt 0:00:15]} Bc5 {[%emt 0:00:08]} 4. c3 {[%emt 0:00:09]} Nf6 {[%emt 0:00:05]} 5. d3 {[%emt 0:00:18]} a6 {[%emt 0:00:08]} 6. Bb3 {[%emt 0:00:34]} Ba7 {[%emt 0:00:07]} 7. O-O {[%emt 0:00:13]} d6 {[%emt 0:00:06]} 8. Nbd2 {[%emt 0:00:39]} h6 {[%emt 0:00:06]} 9. Re1 {[%emt 0:03:13]} g5 {[%emt 0:01:02]} 10. Nf1 {[%emt 0:01:21]} g4 {[%emt 0:00:15]} 11. N3d2 {[%emt 0:01:30]} h5 {[%emt 0:02:12]} 12. Nc4 {[%emt 0:01:05]} Be6 {[%emt 0:02:53]} 13. Be3 {[%emt 0:02:30]} Bxe3 {[%emt 0:04:54]} 14. Ncxe3 {[%emt 0:01:02]} Qd7 {[%emt 0:08:44]} 15. Bxe6 {[%emt 0:04:53]} fxe6 {[%emt 0:00:27]} 16. b4 {[%emt 0:02:07]} Ne7 {[%emt 0:02:47]} 17. Qc2 {[%emt 0:01:51]} h4 {[%emt 0:03:31]} 18. d4 {[%emt 0:02:12]} Ng6 {[%emt 0:00:08]} 19. Nc4 {[%emt 0:02:42]} Qh7 {[%emt 0:26:53]} 20. dxe5 {[%emt 0:03:04]} dxe5 {[%emt 0:00:09]} 21. Qb3 {[%emt 0:01:24]} g3 {[%emt 0:01:47]} 22. Qc2 {[%emt 0:20:08]} O-O-O {[%emt 0:01:18]} 23. h3 {[%emt 0:01:27]} Nf4 {[%emt 0:10:34]} 24. Nxe5 {[%emt 0:10:52]} Qh5 {[%emt 0:03:04]} 25. Nc4 {[%emt 0:06:02]} Nxh3+ {[%emt 0:05:28]} 26. gxh3 {[%emt 0:02:16]} gxf2+ {[%emt 0:00:09]} 27. Qxf2 {[%emt 0:01:39]} Rhg8+ {[%emt 0:00:38]} 28. Kh2 {[%emt 0:02:57]} Rdf8 {[%emt 0:00:07]} 29. Qe3 {[%emt 0:07:37]} Ng4+ {[%emt 0:00:23]} 30. hxg4 {[%emt 0:00:45]} Qxg4 {[%emt 0:00:06]} 31. Re2 {[%emt 0:06:25]} Rf3 {[%emt 0:00:09]} 32. Qxf3 {[%emt 0:00:36]} Qxf3 {[%emt 0:00:11]} 33. Rae1 {[%emt 0:00:49]} Qxc3 {[%emt 0:06:09]} 34. Nfe3 {[%emt 0:01:26]} b5 {[%emt 0:01:49]} 35. Nb6+ {[%emt 0:02:33]} Kb7 {[%emt 0:01:00]} 36. Nd7 {[%emt 0:01:15]} Qxb4 {[%emt 0:00:09]} 37. Rd1 {[%emt 0:00:32]} Rg3 {[%emt 0:00:34]} 38. Rd3 {[%emt 0:03:33]} Qe7 {[%emt 0:02:29]} 39. Rd1 {[%emt 0:02:55]} Qg5 {[%emt 0:00:13]} 40. Nf1 {[%emt 0:00:44]} Qg4 {[%emt 0:00:30]} 41. Rdd2 {[%emt 0:01:15]} Rh3# {[%emt 0:00:04]} 0-1

[Event "FIDE WCCC Open-10 2024"]
[Site "Montesilvano"]
[Date "2024.11.18"]
[Round "2.1"]
[White "Novac, Daniil"]
[Black "Prokhorov, Makar"]
[Result "0-1"]
[ECO "D02"]
[WhiteElo "1594"]
[BlackElo "1771"]
[PlyCount "110"]
[EventDate "2024.11.18"]
[EventType "swiss"]
[EventCountry "ITA"]
[TimeControl "5400+30"]

1. Nf3 {[%emt 0:00:02]} d5 {[%emt 0:00:16]} 2. d4 {[%emt 0:00:07]} e6 {[%emt 0:00:10]} 3. Bf4 {[%emt 0:00:40]} c5 {[%emt 0:00:13]} 4. e3 {[%emt 0:00:19]} Nf6 {[%emt 0:00:39]} 5. c4 {[%emt 0:01:32]} Nc6 {[%emt 0:00:12]} 6. cxd5 {[%emt 0:00:57]} exd5 {[%emt 0:00:09]} 7. Bb5 {[%emt 0:01:23]} Be7 {[%emt 0:01:57]} 8. O-O {[%emt 0:04:38]} O-O {[%emt 0:00:24]} 9. Qa4 {[%emt 0:06:46]} Qb6 {[%emt 0:04:12]} 10. Bxc6 {[%emt 0:05:20]} bxc6 {[%emt 0:00:34]} 11. Nbd2 {[%emt 0:06:14]} Ba6 {[%emt 0:06:53]} 12. Rfc1 {[%emt 0:04:02]} c4 {[%emt 0:03:44]} 13. Ne5 {[%emt 0:09:36]} Rfc8 {[%emt 0:00:52]} 14. Qc2 {[%emt 0:04:45]} c5 {[%emt 0:05:32]} 15. dxc5 {[%emt 0:05:04]} Bxc5 {[%emt 0:01:45]} 16. b3 {[%emt 0:01:51]} Ba3 {[%emt 0:01:00]} 17. Rd1 {[%emt 0:04:03]} c3 {[%emt 0:04:14]} 18. Ndf3 {[%emt 0:03:03]} Bb2 {[%emt 0:07:48]} 19. Rab1 {[%emt 0:01:10]} Qa5 {[%emt 0:01:50]} 20. Nd4 {[%emt 0:05:37]} Qxa2 {[%emt 0:02:28]} 21. Ra1 {[%emt 0:03:18]} Qxa1 {[%emt 0:05:52]} 22. Rxa1 {[%emt 0:00:22]} Bxa1 {[%emt 0:00:19]} 23. Qa2 {[%emt 0:00:42]} Bb2 {[%emt 0:00:49]} 24. Qxa6 {[%emt 0:01:51]} c2 {[%emt 0:00:36]} 25. Nxc2 {[%emt 0:00:39]} Rxc2 {[%emt 0:00:09]} 26. g3 {[%emt 0:01:31]} Rac8 {[%emt 0:04:08]} 27. Nd3 {[%emt 0:04:24]} Bc1 {[%emt 0:06:57]} 28. Ne1 {[%emt 0:02:25]} R2c3 {[%emt 0:09:42]} 29. b4 {[%emt 0:01:15]} Ba3 {[%emt 0:06:22]} 30. Be5 {[%emt 0:02:09]} Rc1 {[%emt 0:03:02]} 31. Qxa3 {[%emt 0:20:15]} Rxe1+ {[%emt 0:01:45]} 32. Kg2 {[%emt 0:00:00]} Ng4 {[%emt 0:06:17]} 33. Qb2 {[%emt 0:00:00]} f6 {[%emt 0:04:27]} 34. Bd4 {[%emt 0:00:00]} Rec1 {[%emt 0:01:53]} 35. Qa2 {[%emt 0:00:00]} R1c4 {[%emt 0:01:34]} 36. b5 {[%emt 0:00:00]} h5 {[%emt 0:04:42]} 37. Bxa7 {[%emt 0:00:00]} Rc2 {[%emt 0:02:53]} 38. Qxd5+ {[%emt 0:00:00]} Kf8 {[%emt 0:01:04]} 39. e4 {[%emt 0:00:00]} Re2 {[%emt 0:02:05]} 40. Qxh5 {[%emt 0:00:00]} Rcc2 {[%emt 0:00:31]} 41. Qxg4 {[%emt 0:00:00]} Rb2 {[%emt 0:00:07]} 42. b6 {[%emt 0:00:00]} Rxf2+ {[%emt 0:00:12]} 43. Kg1 {[%emt 0:00:00]} Rg2+ {[%emt 0:00:10]} 44. Kf1 {[%emt 0:00:00]} Rxh2 {[%emt 0:00:50]} 45. Qc8+ {[%emt 0:00:00]} Kf7 {[%emt 0:00:54]} 46. Qc4+ {[%emt 0:00:00]} Kg6 {[%emt 0:00:15]} 47. Kg1 {[%emt 0:02:07]} Rhg2+ {[%emt 0:00:58]} 48. Kf1 {[%emt 0:01:30]} Rgf2+ {[%emt 0:00:28]} 49. Ke1 {[%emt 0:00:22]} Rh2 {[%emt 0:00:10]} 50. Qd3 {[%emt 0:03:54]} Rh1+ {[%emt 0:00:17]} 51. Qf1 {[%emt 0:00:13]} Rb1+ {[%emt 0:00:19]} 52. Ke2 {[%emt 0:00:13]} Rhxf1 {[%emt 0:00:19]} 53. b7 {[%emt 0:00:32]} Rxb7 {[%emt 0:00:14]} 54. Kxf1 {[%emt 0:00:07]} Rxa7 {[%emt 0:00:05]} 55. Ke2 {[%emt 0:00:08]} Ra3 {[%emt 0:00:11]} 0-1

[Event "FIDE WCCC Open-10 2024"]
[Site "Montesilvano"]
[Date "2024.11.18"]
[Round "2.2"]
[White "Shogdzhiev, Roman"]
[Black "Dayal, Samar"]
[Result "1-0"]
[ECO "B72"]
[WhiteElo "2202"]
[BlackElo "1818"]
[PlyCount "77"]
[EventDate "2024.11.18"]
[EventType "swiss"]
[EventCountry "ITA"]
[TimeControl "5400+30"]

1. e4 {[%emt 0:00:00]} c5 {[%emt 0:00:02]} 2. Nf3 {[%emt 0:00:03]} d6 {[%emt 0:00:04]} 3. d4 {[%emt 0:00:01]} cxd4 {[%emt 0:00:06]} 4. Nxd4 {[%emt 0:00:03]} Nf6 {[%emt 0:00:02]} 5. Nc3 {[%emt 0:00:05]} g6 {[%emt 0:00:02]} 6. Be3 {[%emt 0:00:05]} Nc6 {[%emt 0:00:02]} 7. f3 {[%emt 0:00:04]} h5 {[%emt 0:00:04]} 8. Bc4 {[%emt 0:00:03]} Bd7 {[%emt 1:34:08]} 9. Qd2 Nxd4 {[%emt 0:00:00]} 10. Qxd4 {[%emt 0:00:03]} Bg7 {[%emt 0:00:00]} 11. Qd3 {[%emt 0:00:02]} O-O {[%emt 0:00:00]} 12. Bb3 {[%emt 0:00:01]} Qa5 {[%emt 0:00:00]} 13. O-O-O {[%emt 0:00:18]} b5 {[%emt 0:00:00]} 14. e5 {[%emt 0:00:07]} Bf5 {[%emt 0:00:00]} 15. exf6 {[%emt 0:00:02]} Bxd3 {[%emt 0:00:00]} 16. fxg7 {[%emt 0:00:05]} Kxg7 {[%emt 0:00:00]} 17. Rxd3 {[%emt 0:00:05]} Rab8 {[%emt 0:00:00]} 18. Bd4+ {[%emt 0:06:36]} Kg8 {[%emt 0:00:00]} 19. Nd5 {[%emt 0:00:54]} Rb7 {[%emt 0:00:00]} 20. f4 {[%emt 0:03:21]} Qd8 {[%emt 0:00:00]} 21. Re3 {[%emt 0:05:47]} a5 {[%emt 0:00:00]} 22. a3 {[%emt 0:00:22]} Rd7 {[%emt 0:00:00]} 23. Rhe1 {[%emt 0:01:02]} e5 {[%emt 0:00:00]} 24. Bb6 {[%emt 0:00:48]} Qh4 {[%emt 0:00:00]} 25. g3 {[%emt 0:00:08]} Qh3 {[%emt 0:00:00]} 26. Nf6+ {[%emt 0:00:16]} Kg7 {[%emt 0:00:00]} 27. Nxd7 {[%emt 0:00:07]} Qxd7 {[%emt 0:00:00]} 28. fxe5 {[%emt 0:03:49]} a4 {[%emt 0:00:00]} 29. e6 {[%emt 0:02:45]} fxe6 {[%emt 0:00:00]} 30. Bxe6 {[%emt 0:00:03]} Qc6 {[%emt 0:00:00]} 31. Bd4+ {[%emt 0:00:05]} Kh6 {[%emt 0:00:00]} 32. h4 {[%emt 0:03:02]} Qg2 {[%emt 0:00:00]} 33. Bd7 {[%emt 0:09:38]} Rf2 {[%emt 0:00:00]} 34. Re8 {[%emt 0:00:14]} Rf7 {[%emt 0:00:00]} 35. Be6 {[%emt 0:02:20]} Rc7 {[%emt 0:00:00]} 36. Rh8+ {[%emt 0:00:09]} Rh7 {[%emt 0:00:00]} 37. Be3+ {[%emt 0:00:09]} Kg7 {[%emt 0:00:00]} 38. Rg8+ {[%emt 0:00:13]} Kf6 {[%emt 0:00:00]} 39. Bg5# {[%emt 1:07:05]} 1-0

[Event "FIDE WCCC Open-10 2024"]
[Site "Montesilvano"]
[Date "2024.11.18"]
[Round "2.2"]
[White "Ostapenko, Volodymyr"]
[Black "Gim, Hajin"]
[Result "0-1"]
[ECO "B22"]
[WhiteElo "1720"]
[BlackElo "1603"]
[PlyCount "121"]
[EventDate "2024.11.18"]
[EventType "swiss"]
[EventCountry "ITA"]
[TimeControl "5400+30"]

1. e4 {[%emt 0:00:05]} c5 {[%emt 0:00:03]} 2. d4 {[%emt 0:00:08]} cxd4 {[%emt 0:00:05]} 3. c3 {[%emt 0:00:03]} Nf6 {[%emt 0:00:06]} 4. e5 {[%emt 0:00:29]} Nd5 {[%emt 0:00:05]} 5. cxd4 {[%emt 0:00:19]} d6 {[%emt 0:00:06]} 6. Nf3 {[%emt 0:02:54]} Nc6 {[%emt 0:00:13]} 7. Bc4 {[%emt 0:01:31]} Nb6 {[%emt 0:00:47]} 8. Bb3 {[%emt 0:01:08]} dxe5 {[%emt 0:00:19]} 9. dxe5 {[%emt 0:00:47]} Qxd1+ {[%emt 0:00:09]} 10. Bxd1 {[%emt 0:02:08]} Bg4 {[%emt 0:00:34]} 11. O-O {[%emt 0:00:39]} O-O-O {[%emt 0:00:57]} 12. Bf4 {[%emt 0:01:59]} g6 {[%emt 0:02:57]} 13. Nbd2 {[%emt 0:05:09]} Bg7 {[%emt 0:00:48]} 14. Rc1 {[%emt 0:00:55]} Nd5 {[%emt 0:08:26]} 15. Bg3 {[%emt 0:02:41]} Bh6 {[%emt 0:00:18]} 16. Ba4 {[%emt 0:09:07]} Bxf3 {[%emt 0:00:29]} 17. Nxf3 {[%emt 0:02:19]} Bxc1 {[%emt 0:00:35]} 18. Rxc1 {[%emt 0:00:03]} Nc7 {[%emt 0:02:40]} 19. h3 {[%emt 0:00:28]} Rd5 {[%emt 0:09:21]} 20. e6 {[%emt 0:03:47]} Nxe6 {[%emt 0:01:05]} 21. Ne5 {[%emt 0:00:40]} Ned4 {[%emt 0:02:29]} 22. Kf1 {[%emt 0:01:38]} Ra5 {[%emt 0:03:27]} 23. b3 {[%emt 0:04:21]} f6 {[%emt 1:06:01]} 24. Nd3 {[%emt 0:02:11]} b5 {[%emt 0:00:00]} 25. Nb4 {[%emt 0:00:48]} Kb7 {[%emt 0:00:00]} 26. Nd3 {[%emt 0:01:36]} bxa4 {[%emt 0:00:00]} 27. Nc5+ {[%emt 0:00:11]} Ka8 {[%emt 0:00:00]} 28. bxa4 {[%emt 0:02:27]} e5 {[%emt 0:00:00]} 29. f3 {[%emt 0:00:25]} Nb4 {[%emt 0:00:00]} 30. Be1 {[%emt 0:00:34]} Ndc2 {[%emt 0:00:00]} 31. Rxc2 {[%emt 0:01:30]} Nxc2 {[%emt 0:00:00]} 32. Bxa5 {[%emt 0:00:20]} Rc8 {[%emt 0:00:00]} 33. Nd7 {[%emt 0:00:24]} Rc6 {[%emt 0:00:00]} 34. Nf8 {[%emt 0:00:10]} Rc8 {[%emt 0:00:00]} 35. Nxh7 {[%emt 0:00:27]} Ne3+ {[%emt 0:00:00]} 36. Kf2 {[%emt 0:00:08]} Nd5 {[%emt 0:00:00]} 37. f4 {[%emt 0:01:01]} Rh8 {[%emt 0:00:00]} 38. Nxf6 {[%emt 0:00:21]} Nxf6 {[%emt 0:00:00]} 39. fxe5 {[%emt 0:00:05]} Rh5 {[%emt 0:00:00]} 40. Bc7 {[%emt 0:03:33]} Rf5+ {[%emt 0:00:00]} 41. Ke2 {[%emt 0:00:46]} Ne8 {[%emt 0:00:00]} 42. g4 {[%emt 0:00:39]} Rg5 {[%emt 0:00:00]} 43. Bd8 {[%emt 0:03:15]} Rxe5+ {[%emt 0:00:00]} 44. Kf3 {[%emt 0:00:09]} g5 {[%emt 0:00:00]} 45. h4 {[%emt 0:01:04]} gxh4 {[%emt 0:00:00]} 46. Bxh4 {[%emt 0:00:04]} Kb7 {[%emt 0:00:00]} 47. Kf4 {[%emt 0:00:49]} Ra5 {[%emt 0:00:00]} 48. a3 {[%emt 0:00:29]} Kc6 {[%emt 0:00:00]} 49. Be7 {[%emt 0:00:13]} Kd7 {[%emt 0:00:00]} 50. Bb4 {[%emt 0:00:11]} Rd5 {[%emt 0:00:00]} 51. a5 {[%emt 0:02:03]} a6 {[%emt 0:00:00]} 52. Ke3 {[%emt 0:00:55]} Ke6 {[%emt 0:00:00]} 53. g5 {[%emt 0:00:19]} Kf5 {[%emt 0:00:00]} 54. g6 {[%emt 0:00:07]} Kxg6 {[%emt 0:00:00]} 55. Ke4 {[%emt 0:00:22]} Nf6+ {[%emt 0:00:00]} 56. Ke3 {[%emt 0:00:15]} Kf5 {[%emt 0:00:00]} 57. Bc3 {[%emt 0:00:37]} Ng4+ {[%emt 0:00:00]} 58. Ke2 {[%emt 0:00:17]} Ke4 {[%emt 0:00:00]} 59. Be1 {[%emt 0:01:25]} Ne3 {[%emt 0:00:00]} 60. Bc3 {[%emt 0:00:29]} Nc4 {[%emt 0:00:00]} 61. Ke1 {[%emt 0:47:03]} 0-1

[Event "FIDE WCCC Open-10 2024"]
[Site "Montesilvano"]
[Date "2024.11.18"]
[Round "2.3"]
[White "Zhang, Oscar Y"]
[Black "Llari, Marc"]
[Result "1/2-1/2"]
[ECO "C18"]
[WhiteElo "1817"]
[BlackElo "2201"]
[PlyCount "85"]
[EventDate "2024.11.18"]
[EventType "swiss"]
[EventCountry "ITA"]
[TimeControl "5400+30"]

1. e4 {[%emt 0:00:02]} e6 {[%emt 0:00:04]} 2. d4 {[%emt 0:00:06]} d5 {[%emt 0:00:05]} 3. Nc3 {[%emt 0:00:04]} Bb4 {[%emt 0:00:04]} 4. e5 {[%emt 0:00:07]} c5 {[%emt 0:00:04]} 5. a3 {[%emt 0:00:10]} Bxc3+ {[%emt 0:00:05]} 6. bxc3 {[%emt 0:00:09]} Qa5 {[%emt 0:00:04]} 7. Bd2 {[%emt 0:02:01]} Qa4 {[%emt 0:00:36]} 8. Nf3 {[%emt 0:03:10]} b6 {[%emt 0:01:28]} 9. Bd3 {[%emt 0:06:57]} Ba6 {[%emt 0:01:34]} 10. O-O {[%emt 0:00:41]} Ne7 {[%emt 0:01:51]} 11. Be3 {[%emt 0:03:53]} c4 {[%emt 0:04:18]} 12. Be2 {[%emt 0:00:16]} Nbc6 {[%emt 0:01:19]} 13. Nh4 {[%emt 0:04:37]} Ng6 {[%emt 0:02:30]} 14. Nxg6 {[%emt 0:03:05]} fxg6 {[%emt 0:00:40]} 15. Bg4 {[%emt 0:03:22]} Bc8 {[%emt 0:02:28]} 16. Ra2 {[%emt 0:05:26]} Bd7 {[%emt 0:00:55]} 17. Bg5 {[%emt 0:01:11]} O-O {[%emt 0:01:44]} 18. f4 {[%emt 0:04:09]} Rf7 {[%emt 0:01:30]} 19. Rf3 {[%emt 0:03:24]} h6 {[%emt 0:02:29]} 20. Bh4 {[%emt 0:00:08]} Raf8 {[%emt 0:00:23]} 21. Qf1 {[%emt 0:04:19]} a5 {[%emt 0:01:00]} 22. Bg3 {[%emt 0:06:36]} Ne7 {[%emt 0:02:01]} 23. Be1 {[%emt 0:04:35]} Nf5 {[%emt 0:01:39]} 24. Bxf5 {[%emt 0:00:38]} Rxf5 {[%emt 0:02:47]} 25. Bd2 {[%emt 0:05:14]} Qc6 {[%emt 0:04:24]} 26. a4 {[%emt 0:05:39]} b5 {[%emt 0:04:04]} 27. axb5 {[%emt 0:01:31]} Qxb5 {[%emt 0:01:06]} 28. Bc1 {[%emt 0:00:28]} Qb1 {[%emt 0:04:37]} 29. Rb2 {[%emt 0:04:48]} Qa1 {[%emt 0:01:05]} 30. Rb7 {[%emt 0:00:09]} Ba4 {[%emt 0:01:50]} 31. Rb2 {[%emt 0:03:36]} Kh7 {[%emt 0:02:19]} 32. h3 {[%emt 0:04:57]} g5 {[%emt 0:02:32]} 33. fxg5 {[%emt 0:21:32]} Rxf3 {[%emt 0:53:25]} 34. g6+ {[%emt 0:00:00]} Kxg6 {[%emt 0:00:00]} 35. gxf3 {[%emt 0:00:00]} Rxf3 {[%emt 0:00:00]} 36. Qd1 {[%emt 0:00:00]} Rxh3 {[%emt 0:00:00]} 37. Rb7 {[%emt 0:00:00]} Kh7 {[%emt 0:00:00]} 38. Rxg7+ {[%emt 0:00:00]} Kh8 {[%emt 0:00:00]} 39. Rc7 {[%emt 0:00:00]} Qxc3 {[%emt 0:00:00]} 40. Rc8+ {[%emt 0:00:00]} Kh7 {[%emt 0:00:00]} 41. Rc7+ {[%emt 0:00:00]} Kh8 {[%emt 0:00:00]} 42. Rc8+ {[%emt 0:00:00]} Kh7 {[%emt 0:00:00]} 43. Rc7+ {[%emt 0:00:00]} 1/2-1/2

[Event "FIDE WCCC Open-10 2024"]
[Site "Montesilvano"]
[Date "2024.11.18"]
[Round "2.3"]
[White "Mitrovic, Vasilije"]
[Black "Sahin, Yusuf Kerem"]
[Result "0-1"]
[ECO "B73"]
[WhiteElo "1590"]
[BlackElo "1720"]
[PlyCount "106"]
[EventDate "2024.11.18"]
[EventType "swiss"]
[EventCountry "ITA"]
[TimeControl "5400+30"]

1. e4 {[%emt 0:00:06]} c5 {[%emt 0:00:11]} 2. Nf3 {[%emt 0:00:41]} d6 {[%emt 0:00:09]} 3. d4 {[%emt 0:00:38]} cxd4 {[%emt 0:00:07]} 4. Nxd4 {[%emt 0:00:59]} Nf6 {[%emt 0:01:05]} 5. Nc3 {[%emt 0:00:14]} g6 {[%emt 0:00:14]} 6. Be2 {[%emt 0:07:18]} Bg7 {[%emt 0:01:16]} 7. O-O {[%emt 0:07:57]} O-O {[%emt 0:00:21]} 8. Be3 {[%emt 0:08:11]} Nc6 {[%emt 0:00:45]} 9. h3 {[%emt 0:05:04]} Nxd4 {[%emt 0:03:55]} 10. Bxd4 {[%emt 0:04:55]} Be6 {[%emt 0:00:35]} 11. Kh1 {[%emt 0:07:11]} a6 {[%emt 0:01:42]} 12. f4 {[%emt 0:06:16]} Rc8 {[%emt 0:02:32]} 13. g4 {[%emt 0:07:52]} Bc4 {[%emt 0:03:51]} 14. f5 {[%emt 0:40:08]} b5 {[%emt 0:02:18]} 15. Bxc4 {[%emt 0:00:00]} Rxc4 {[%emt 0:00:18]} 16. Bxf6 {[%emt 0:00:00]} Bxf6 {[%emt 0:00:56]} 17. fxg6 {[%emt 0:00:00]} hxg6 {[%emt 0:01:13]} 18. Qd3 {[%emt 0:00:00]} Bxc3 {[%emt 0:01:08]} 19. bxc3 {[%emt 0:00:00]} Qc7 {[%emt 0:00:49]} 20. Rf3 {[%emt 0:00:00]} Rc8 {[%emt 0:02:12]} 21. Rc1 {[%emt 0:00:00]} Rxc3 {[%emt 0:01:58]} 22. Qxc3 {[%emt 0:00:00]} Qxc3 {[%emt 0:00:32]} 23. Rxc3 {[%emt 0:00:00]} Rxc3 {[%emt 0:00:06]} 24. Kg2 {[%emt 0:00:00]} Kg7 {[%emt 0:01:31]} 25. h4 {[%emt 0:00:00]} Re3 {[%emt 0:02:03]} 26. c4 {[%emt 0:00:00]} b4 {[%emt 0:02:51]} 27. c5 {[%emt 0:00:22]} dxc5 {[%emt 0:00:08]} 28. Rxc5 {[%emt 0:00:10]} Re2+ {[%emt 0:00:09]} 29. Kf3 {[%emt 0:00:07]} Rxa2 {[%emt 0:00:06]} 30. Rc1 {[%emt 0:00:19]} b3 {[%emt 0:01:06]} 31. Rb1 {[%emt 0:00:18]} b2 {[%emt 0:00:07]} 32. Ke2 {[%emt 0:00:21]} a5 {[%emt 0:00:08]} 33. Kd3 {[%emt 0:00:38]} a4 {[%emt 0:00:05]} 34. Kc2 {[%emt 0:01:02]} a3 {[%emt 0:00:05]} 35. Kb3 {[%emt 0:01:08]} Ra1 {[%emt 0:00:06]} 36. Kc2 {[%emt 0:00:15]} Rxb1 {[%emt 0:00:37]} 37. Kxb1 {[%emt 0:00:09]} Kf6 {[%emt 0:00:08]} 38. h5 {[%emt 0:00:34]} gxh5 {[%emt 0:00:06]} 39. gxh5 {[%emt 0:00:08]} Kg5 {[%emt 0:00:04]} 40. h6 {[%emt 0:00:47]} Kxh6 {[%emt 0:00:04]} 41. e5 {[%emt 0:00:18]} f5 {[%emt 0:00:09]} 42. exf6 {[%emt 0:00:36]} e5 {[%emt 0:00:24]} 43. f7 {[%emt 0:00:12]} Kg7 {[%emt 0:00:04]} 44. f8=Q+ {[%emt 0:00:22]} Kxf8 {[%emt 0:00:08]} 45. Kc2 {[%emt 0:00:17]} e4 {[%emt 0:00:05]} 46. Kb1 {[%emt 0:00:26]} e3 {[%emt 0:00:04]} 47. Kc2 {[%emt 0:00:13]} e2 {[%emt 0:00:05]} 48. Kd2 {[%emt 0:00:30]} a2 {[%emt 0:00:05]} 49. Kxe2 {[%emt 0:00:09]} b1=Q {[%emt 0:00:09]} 50. Ke3 {[%emt 0:00:11]} a1=Q {[%emt 0:00:11]} 51. Kf4 {[%emt 0:00:15]} Qd3 {[%emt 0:00:20]} 52. Kg4 {[%emt 0:00:57]} Qf6 {[%emt 0:00:12]} 53. Kh5 {[%emt 0:00:12]} Qd1# {[%emt 0:00:07]} 0-1

[Event "FIDE WCCC Open-10 2024"]
[Site "Montesilvano"]
[Date "2024.11.18"]
[Round "2.4"]
[White "Annapureddy, Rheyansh Reddy"]
[Black "Tulegen, Ramazan"]
[Result "0-1"]
[ECO "B94"]
[WhiteElo "2122"]
[BlackElo "1818"]
[PlyCount "90"]
[EventDate "2024.11.18"]
[EventType "swiss"]
[EventCountry "ITA"]
[TimeControl "5400+30"]

1. e4 {[%emt 0:00:03]} c5 {[%emt 0:00:13]} 2. Nf3 {[%emt 0:00:04]} d6 {[%emt 1:31:17]} 3. d4 {[%emt 0:00:05]} cxd4 {[%emt 0:00:00]} 4. Nxd4 {[%emt 0:00:04]} Nf6 {[%emt 0:00:00]} 5. Nc3 {[%emt 0:00:07]} a6 {[%emt 0:00:00]} 6. Bg5 {[%emt 0:00:31]} Nbd7 {[%emt 0:00:00]} 7. Bc4 {[%emt 0:01:06]} Qb6 {[%emt 0:00:00]} 8. Bb3 {[%emt 0:01:04]} e6 {[%emt 0:00:00]} 9. Qd2 {[%emt 0:01:00]} Be7 {[%emt 0:00:00]} 10. O-O-O {[%emt 0:00:40]} Nc5 {[%emt 0:00:00]} 11. Rhe1 {[%emt 0:00:25]} Qc7 {[%emt 0:00:00]} 12. f4 {[%emt 0:01:47]} h6 {[%emt 0:00:00]} 13. Bh4 {[%emt 0:05:02]} Nfxe4 {[%emt 0:00:00]} 14. Nxe4 {[%emt 0:02:36]} Bxh4 {[%emt 0:00:00]} 15. Nf5 {[%emt 0:03:48]} Bxe1 {[%emt 0:00:00]} 16. Nexd6+ {[%emt 0:07:15]} Kf8 {[%emt 0:00:00]} 17. Rxe1 {[%emt 0:03:44]} Bd7 {[%emt 0:00:00]} 18. Ne3 {[%emt 0:14:19]} Rd8 {[%emt 0:00:00]} 19. Rd1 {[%emt 0:04:21]} Bb5 {[%emt 0:00:00]} 20. Nxb5 {[%emt 0:12:36]} Rxd2 {[%emt 0:00:00]} 21. Nxc7 {[%emt 0:00:22]} Nxb3+ {[%emt 0:00:00]} 22. axb3 {[%emt 0:00:22]} Rxd1+ {[%emt 0:00:00]} 23. Kxd1 {[%emt 0:00:34]} Ke7 {[%emt 0:00:00]} 24. c4 {[%emt 0:00:46]} Rc8 {[%emt 0:00:00]} 25. Nxa6 {[%emt 0:00:07]} bxa6 {[%emt 0:00:00]} 26. Kc2 {[%emt 0:00:16]} g5 {[%emt 0:00:00]} 27. f5 {[%emt 0:00:07]} Kd6 {[%emt 0:00:00]} 28. Kd3 {[%emt 0:00:32]} Kc5 {[%emt 0:00:00]} 29. Kc3 {[%emt 0:00:22]} a5 {[%emt 0:00:00]} 30. f6 {[%emt 0:02:54]} h5 {[%emt 0:00:00]} 31. Nf1 {[%emt 0:01:05]} Kd6 {[%emt 0:00:00]} 32. Ng3 {[%emt 0:00:45]} Ke5 {[%emt 0:00:00]} 33. Nxh5 {[%emt 0:00:08]} Ke4 {[%emt 0:00:00]} 34. Ng3+ {[%emt 0:02:38]} Ke3 {[%emt 0:00:00]} 35. b4 {[%emt 0:01:03]} axb4+ {[%emt 0:00:00]} 36. Kxb4 {[%emt 0:00:02]} Kd3 {[%emt 0:00:00]} 37. b3 {[%emt 0:02:08]} Rb8+ {[%emt 0:00:00]} 38. Kc5 {[%emt 0:03:01]} Rxb3 {[%emt 0:00:00]} 39. Kd6 {[%emt 0:01:09]} Kxc4 {[%emt 0:00:00]} 40. Ne4 {[%emt 0:00:51]} Rb6+ {[%emt 0:00:00]} 41. Kc7 {[%emt 0:01:19]} Ra6 {[%emt 0:00:00]} 42. Nxg5 {[%emt 0:10:24]} e5 {[%emt 0:00:00]} 43. Nxf7 {[%emt 0:05:01]} Kd5 {[%emt 0:00:00]} 44. Kd7 {[%emt 0:02:23]} Rxf6 {[%emt 0:00:00]} 45. Ke7 {[%emt 0:00:06]} Rg6 {[%emt 0:00:00]} 0-1

[Event "FIDE WCCC Open-10 2024"]
[Site "Montesilvano"]
[Date "2024.11.18"]
[Round "2.4"]
[White "Aguike, Toshiya"]
[Black "Tamiolakis, Grigorios"]
[Result "1-0"]
[ECO "B42"]
[WhiteElo "1716"]
[BlackElo "1591"]
[PlyCount "69"]
[EventDate "2024.11.18"]
[EventType "swiss"]
[EventCountry "ITA"]
[TimeControl "5400+30"]

1. e4 {[%emt 0:00:05]} c5 {[%emt 0:00:07]} 2. Nf3 {[%emt 0:00:05]} e6 {[%emt 0:00:07]} 3. d4 {[%emt 0:00:04]} cxd4 {[%emt 0:00:04]} 4. Nxd4 {[%emt 0:00:07]} a6 {[%emt 0:00:11]} 5. c4 {[%emt 0:02:07]} Qc7 {[%emt 0:00:22]} 6. Nc3 {[%emt 0:01:39]} Nf6 {[%emt 0:00:30]} 7. Bd3 {[%emt 0:00:56]} Nc6 {[%emt 0:01:15]} 8. Nxc6 {[%emt 0:02:20]} dxc6 {[%emt 0:00:36]} 9. O-O {[%emt 0:02:14]} h6 {[%emt 0:18:18]} 10. Qe2 {[%emt 0:05:36]} Bd6 {[%emt 0:15:16]} 11. f4 {[%emt 0:07:30]} e5 {[%emt 0:09:06]} 12. f5 {[%emt 1:13:47]} Bc5+ {[%emt 0:15:26]} 13. Kh1 {[%emt 0:00:00]} O-O {[%emt 0:01:38]} 14. g4 {[%emt 0:01:00]} Nh7 {[%emt 0:07:12]} 15. Qg2 {[%emt 0:00:00]} f6 {[%emt 0:04:19]} 16. h4 {[%emt 0:00:00]} Rd8 {[%emt 0:05:12]} 17. Bc2 {[%emt 0:00:00]} Bd7 {[%emt 0:06:13]} 18. g5 {[%emt 0:00:00]} hxg5 {[%emt 0:01:27]} 19. hxg5 {[%emt 0:00:00]} Nxg5 {[%emt 0:02:03]} 20. Bxg5 {[%emt 0:00:00]} fxg5 {[%emt 0:00:11]} 21. Qxg5 {[%emt 0:00:00]} Be8 {[%emt 0:03:22]} 22. Na4 {[%emt 0:00:00]} Bf8 {[%emt 0:01:58]} 23. c5 {[%emt 0:00:00]} Rab8 {[%emt 0:02:08]} 24. f6 {[%emt 0:00:00]} Rd7 {[%emt 0:01:49]} 25. Nb6 {[%emt 0:00:00]} Rdd8 {[%emt 0:00:14]} 26. Bb3+ {[%emt 0:00:00]} Bf7 {[%emt 0:00:10]} 27. fxg7 {[%emt 0:00:00]} Bxg7 {[%emt 0:00:43]} 28. Rxf7 {[%emt 0:00:00]} Qxf7 {[%emt 0:00:13]} 29. Bxf7+ {[%emt 0:00:00]} Kxf7 {[%emt 0:00:06]} 30. Rf1+ {[%emt 0:00:00]} Kg8 {[%emt 0:02:58]} 31. Rg1 {[%emt 0:00:00]} Kf8 {[%emt 0:00:10]} 32. Qxg7+ {[%emt 0:00:00]} Ke8 {[%emt 0:00:04]} 33. Qg8+ {[%emt 0:00:00]} Ke7 {[%emt 0:00:06]} 34. Rg7+ {[%emt 0:00:00]} Kf6 {[%emt 0:00:13]} 35. Qf7# {[%emt 0:00:00]} 1-0